bitfinex-derivatives/quotes_ETHF0:USTF0_20251007
["timestamp","ask_amount","ask_price","bid_price","bid_amount"]
[1759848046857,0.38907,4622.7,4622.5,0.4514]
[1759848046858,0.38904,4623.1,4623.0,1.583]
[1759848047252,0.38907,4622.7,4622.6,1.1316]
[1759848047455,0.38911,4622.3,4622.2,1.1316]
[1759848047652,0.38909,4622.5,4622.2,1.1316]
[1759848047858,3.59687,4622.7,4622.1,0.00257705]
[1759848048062,0.00227614,4623.6,4622.6,1.1316]
[1759848048266,0.38906,4622.9,4622.8,1.1316]
[1759848048557,0.38906,4622.9,4622.5,0.6724]
[1759848048558,0.00227614,4623.6,4623.1,1.1316]
[1759848048754,0.00227614,4623.6,4623.5,1.583]
[1759848050158,0.38906,4622.8,4622.7,1.1316]
[1759848050666,0.38911,4622.3,4622.2,1.1316]
[1759848050866,0.38911,4622.3,4622.1,0.00257705]
[1759848050867,1.0913,4622.2,4622.1,0.00257705]
[1759848051162,0.38911,4622.3,4622.2,1.1316]
[1759848051351,1.0913,4622.9,4622.2,1.1316]
[1759848051352,0.38909,4622.5,4622.2,1.1316]
[1759848051558,3.2078,4622.9,4622.2,1.1316]
[1759848051857,0.38911,4622.3,4622.1,1.13417705]
[1759848052059,3.59691,4622.3,4622.1,0.00257705]
[1759848052357,3.59691,4622.3,4622.1,1.13417705]
[1759848052553,3.59691,4622.3,4622.2,1.1316]
[1759848052754,3.5969,4622.3,4622.2,1.1316]
[1759848053858,3.5969,4622.3,4622.1,0.00257705]
[1759848054066,0.3891,4622.4,4622.1,1.13417705]
[1759848054262,3.2078,4622.9,4622.5,0.4514]
[1759848054564,0.38907,4622.7,4622.6,1.1316]
[1759848055265,0.38911,4622.3,4622.2,1.1316]
[1759848055461,3.2078,4622.9,4622.2,1.1316]
[1759848055764,0.38911,4622.3,4622.1,0.00257705]
[1759848055958,3.2078,4622.4,4622.1,0.00257705]
[1759848056355,3.2078,4622.4,4622.2,1.1316]
[1759848056356,0.38911,4622.3,4622.2,1.1316]
[1759848056760,1.0913,4622.2,4622.1,0.00257705]
[1759848057368,1.3113,4622.2,4622.1,0.00257705]
[1759848057561,1.0913,4622.2,4622.1,0.00257705]
[1759848057762,0.38911,4622.3,4622.1,0.00257705]
[1759848057959,1.3113,4622.2,4622.1,0.00257705]
[1759848058967,0.38911,4622.3,4622.1,0.00257705]
[1759848059162,3.2078,4622.4,4622.1,0.00257705]
[1759848059363,3.4278,4622.4,4622.2,1.1316]
[1759848059961,3.4278,4622.4,4620.7,3.2078]
[1759848059962,0.38923,4620.8,4620.7,3.2078]
[1759848060158,7.82719181,4622.3,4619.2,40.8]
[1759848060159,3.2078,4621.0,4620.1,4.3394]
[1759848060364,0.38928,4620.3,4620.2,1.1316]
[1759848060665,0.97316,4620.4,4619.6,1.1316]
[1759848060871,0.38933,4619.7,4619.5,1.583]
[1759848061166,0.39160999,4619.7,4619.6,0.22]
[1759848061365,0.00227999,4619.7,4619.6,1.3516]
[1759848061972,0.00227999,4619.7,4619.6,6.3516]
[1759848062169,3.2078,4620.4,4620.0,0.4514]
[1759848062369,3.2078,4620.4,4620.1,1.1316]
[1759848062569,3.2078,4620.4,4620.3,1.0987]
[1759848062761,3.2078,4621.2,4620.3,1.0987]
[1759848062992,0.38922,4620.9,4620.6,1.0987]
[1759848063274,0.38924,4620.6,4620.5,0.4581]
[1759848063469,0.38924,4620.6,4620.0,0.84069]
[1759848063772,3.2078,4620.7,4620.6,1.0987]
[1759848064074,0.38929,4620.1,4620.0,1.5501]
[1759848064273,3.2078,4620.7,4620.0,0.6714]
[1759848064471,0.38927,4620.3,4620.1,1.0987]
[1759848064666,0.38927,4620.3,4620.2,0.22]
[1759848064973,0.38927,4620.3,4620.2,1.3187]
[1759848065175,3.2078,4620.7,4620.2,1.3187]
[1759848065176,0.38926,4620.5,4620.2,0.22]
[1759848065371,3.59704,4620.7,4620.3,1.0987]
[1759848065672,3.2078,4620.7,4620.6,1.0987]
[1759848065868,0.00230497,4620.9,4620.6,1.0987]
[1759848066082,0.00230497,4620.9,4620.8,1.0987]
[1759848067071,3.2078,4621.3,4620.8,1.3187]
[1759848067263,3.2078,4624.3,4622.1,0.9728]
[1759848067569,0.38898,4623.8,4623.1,1.0987]
[1759848067977,0.38898,4623.8,4623.2,0.22]
[1759848068168,3.59940704,4623.8,4623.2,0.00182569]
[1759848068371,3.59940704,4623.8,4623.4,1.0987]
[1759848068571,3.21042704,4623.8,4623.6,1.0987]
[1759848068869,3.21042704,4623.8,4623.5,0.6781]
[1759848069068,3.21042704,4623.8,4623.6,1.0987]
[1759848069378,0.00262704,4623.8,4623.7,4.3065]
[1759848069566,0.00262704,4623.8,4623.7,1.3187]
[1759848070267,0.00262704,4623.8,4623.7,1.0987]
[1759848070474,0.00262704,4623.8,4623.7,4.5265]
[1759848070877,0.00262704,4623.8,4623.7,9.5265]
[1759848071672,0.00262704,4623.8,4623.7,9.3065]
[1759848071871,0.00262704,4623.8,4623.7,9.5265]
[1759848072875,0.00262704,4623.8,4623.7,1.3187]
[1759848073076,0.00262704,4623.8,4623.7,4.5265]
[1759848073867,0.00262704,4623.8,4623.7,4.3065]
[1759848074071,0.00262704,4623.8,4623.7,1.3187]
[1759848074313,1.1564,4625.5,4624.1,1.0987]
[1759848074577,0.38891,4624.6,4624.5,0.4581]
[1759848074778,0.38891,4624.6,4624.5,1.0987]
[1759848074975,5.97228,4624.6,4624.3,0.22]
[1759848075172,0.38892,4624.5,4624.3,0.22]
[1759848075373,0.38896,4624.0,4623.8,1.0987]
[1759848075673,0.38899,4623.6,4623.5,1.5568]
[1759848075872,0.38902,4623.3,4623.2,1.10052569]
[1759848076070,1.54542,4623.3,4623.2,0.00182569]
[1759848076376,0.38911,4622.3,4622.0,3.6659]
[1759848076584,0.38911,4622.2,4622.1,0.22]
[1759848076876,0.38911,4622.2,4622.1,1.3187]
[1759848077485,3.59691,4622.2,4622.1,1.32051186]
[1759848077677,3.59691,4622.2,4622.1,1.10051186]
[1759848078182,3.59691,4622.2,4622.1,1.32051186]
[1759848078375,3.59691,4622.2,4622.1,0.00181186]
[1759848078781,4.75331,4622.2,4622.1,0.00181186]
[1759848080383,3.59691,4622.2,4622.1,0.00181186]
[1759848080588,4.75331,4622.2,4622.1,0.00181186]
[1759848081681,9.75331,4622.2,4622.1,0.00181186]
[1759848082579,9.75331,4622.2,4621.0,1.0987]
[1759848082580,9.3642,4622.2,4621.0,1.0987]
[1759848082874,0.38917,4621.5,4621.0,1.0987]
[1759848083198,3.2078,4621.7,4621.2,1.0987]
[1759848083379,0.38919,4621.3,4621.2,1.0987]
[1759848083575,0.38919,4621.3,4621.2,1.10108431]
[1759848083781,0.38919,4621.3,4621.2,1.32108431]
[1759848084284,3.2078,4621.7,4621.2,0.22238431]
[1759848084580,3.2078,4621.7,4621.2,0.00238431]
[1759848084581,1.1564,4621.3,4621.2,0.00238431]
[1759848085084,0.38918,4621.4,4621.2,1.10108431]
[1759848085482,1.54558,4621.4,4621.2,0.00238431]
[1759848085686,0.38918,4621.4,4621.2,0.00238431]
[1759848085890,1.1564,4621.3,4621.2,0.00238431]
[1759848086085,0.3945,4619.5,4619.4,1.54891648]
[1759848086383,0.38945,4618.2,4618.1,1.0987]
[1759848087091,0.39105433,4618.2,4618.1,0.00252024]
[1759848087314,0.39105433,4618.2,4617.5,1.5568]
[1759848087315,0.38946,4618.0,4617.5,1.5568]
[1759848088183,5.38946,4618.0,4617.5,1.5568]
[1759848088382,5.38946,4618.0,4616.4,1.94241847]
[1759848088383,0.38961,4616.3,4616.2,1.94241847]
[1759848088594,0.38959,4616.6,4616.2,1.10141918]
[1759848088783,0.38961,4616.4,4616.2,1.10141918]
[1759848089079,3.2078,4616.8,4616.2,0.00271918]
[1759848089283,3.2078,4616.8,4616.2,1.10141918]
[1759848089478,0.38961,4616.4,4616.3,1.0987]
[1759848089690,3.2078,4616.8,4616.3,1.0987]
[1759848089885,3.4278,4617.3,4616.6,1.0987]
[1759848090186,3.4278,4617.3,4616.2,1.10141918]
[1759848090187,0.38961,4616.3,4616.2,1.10141918]
[1759848090408,0.38958,4616.6,4616.5,1.5568]
[1759848090689,0.38958,4616.6,4616.5,0.4581]
[1759848090879,0.38958,4616.6,4616.5,1.5568]
[1759848091288,3.2078,4616.7,4616.6,1.0987]
[1759848092794,3.59737,4616.7,4616.6,1.0987]
[1759848094895,3.2078,4616.7,4616.6,1.0987]
[1759848095892,0.38961,4616.3,4616.2,0.00271918]
[1759848096098,0.38961,4616.3,4616.2,1.09501918]
[1759848096297,3.42195358,4616.3,4616.2,0.00271918]
[1759848096498,3.42195358,4616.3,4616.2,1.09501918]
[1759848097295,3.42195358,4616.3,4616.2,0.00271918]
[1759848097995,0.97405,4616.2,4615.0,1.5504]
[1759848098199,3.2078,4615.1,4615.0,1.5504]
[1759848098888,3.2078,4615.1,4615.0,1.5523428]
[1759848099500,0.38977,4614.4,4614.0,0.4559]
[1759848099724,3.2078,4614.9,4614.1,1.0674]
[1759848099900,0.22,4615.0,4614.7,3.2078]
[1759848100202,0.38971,4615.2,4615.1,1.0674]
[1759848100504,0.00230586,4615.2,4615.1,1.06922984]
[1759848100896,3.21010586,4615.2,4615.1,1.06922984]
[1759848101199,0.00230586,4615.2,4615.1,1.06922984]
[1759848102402,0.00230586,4615.2,4615.1,0.00182984]
[1759848102799,0.00230586,4615.2,4615.1,1.06922984]
[1759848104103,0.00230586,4615.2,4615.1,4.27702984]
[1759848104497,0.00230586,4615.2,4615.1,9.27702984]
[1759848104698,0.00230586,4615.2,4615.1,9.49702984]
[1759848104893,0.00230586,4615.2,4615.1,4.27702984]
[1759848105107,0.00230586,4615.2,4615.1,1.06922984]
[1759848105695,0.00230586,4615.2,4614.5,3.6408]
[1759848105696,0.38974,4614.7,4614.6,1.0674]
[1759848105902,0.38971,4615.1,4615.0,1.5004]
[1759848106302,0.00230586,4615.2,4615.1,1.0674]
[1759848106495,0.00230586,4615.2,4615.1,1.06949632]
[1759848108502,0.00230586,4615.2,4615.1,0.00209632]
[1759848108503,5.00230586,4615.2,4615.1,0.00209632]
[1759848108698,0.97428,4615.1,4614.5,1.5004]
[1759848109006,0.38975,4614.6,4614.5,1.5004]
[1759848109805,0.38975,4614.6,4614.5,1.50244496]
[1759848110809,0.38984,4613.6,4613.5,0.4559]
[1759848111023,3.59764,4613.6,4613.5,1.5233]
[1759848111809,3.81764,4613.6,4613.5,0.00215912]
[1759848112209,2.82310343,4613.6,4612.9,0.02167857]
[1759848112510,0.38983,4613.7,4613.5,0.433]
[1759848112705,0.38983,4613.7,4613.6,1.0674]
[1759848112904,3.59759,4614.1,4614.0,0.433]
[1759848113116,3.71540511,4614.1,4614.0,1.5004]
[1759848113306,3.71540511,4614.1,4614.0,1.50285258]
[1759848113500,0.50760511,4614.1,4614.0,1.50285258]
[1759848113700,3.2078,4614.6,4614.5,1.5004]
[1759848114006,3.71588934,4614.6,4614.5,1.5004]
[1759848114404,0.50808934,4614.6,4614.5,1.5004]
[1759848114601,0.50808934,4614.6,4614.5,6.5004]
[1759848114800,0.00230586,4615.2,4615.1,1.0674]
[1759848115006,0.00230586,4615.2,4615.1,4.4952]
[1759848115713,0.00230586,4615.2,4615.1,9.4952]
[1759848116516,0.38962,4616.1,4616.0,1.5004]
[1759848117007,3.59742,4616.2,4616.1,1.0674]
[1759848117226,0.38966,4615.7,4615.6,1.0674]
[1759848117408,0.39128637,4615.7,4615.6,1.2874]
[1759848117813,0.00162637,4615.7,4615.6,1.2874]
[1759848119112,0.38961,4616.3,4616.1,1.0674]
[1759848119309,0.38961,4616.3,4616.2,1.2874]
[1759848119904,3.2078,4616.7,4616.2,1.2874]
[1759848119905,3.2078,4616.7,4616.6,1.0674]
[1759848120111,3.2078,4617.2,4617.1,1.0674]
[1759848120319,3.21024858,4617.2,4617.1,1.0674]
[1759848120816,3.21024858,4617.2,4617.1,1.2874]
[1759848121018,3.21024858,4617.2,4617.1,1.0674]
[1759848121214,8.21024858,4617.2,4617.1,1.0674]
[1759848121417,0.38958,4616.6,4616.5,1.5004]
[1759848121718,0.38962,4616.1,4616.0,1.5004]
[1759848121916,0.38962,4616.1,4615.5,1.5004]
[1759848121917,0.38967,4615.6,4615.5,1.5004]
[1759848122522,0.38971,4615.1,4615.0,1.6086]
[1759848122821,0.38975,4614.6,4614.5,1.6086]
[1759848123608,3.2078,4615.1,4614.5,1.6086]
[1759848123804,0.38973,4614.9,4614.5,0.433]
[1759848124022,3.59751,4615.1,4615.0,1.636]
[1759848124512,3.2078,4615.1,4615.0,1.636]
[1759848124907,3.2078,4615.1,4615.0,1.856]
[1759848126921,3.68213272,4615.1,4615.0,1.636]
[1759848127113,3.68213272,4615.1,4615.0,1.856]
[1759848127523,0.47433272,4615.1,4615.0,6.856]
[1759848127715,3.2078,4615.6,4615.5,0.4604]
[1759848128018,0.38957,4616.7,4616.6,1.1756]
[1759848128520,3.2078,4616.9,4616.5,0.6804]
[1759848128720,3.59736,4616.9,4616.6,1.1756]
[1759848128919,3.2078,4616.9,4616.6,1.1756]
[1759848129325,0.38957,4616.8,4616.7,1.3956]
[1759848129522,0.38957,4616.8,4616.7,1.1756]
[1759848129823,3.2078,4616.9,4616.7,1.1756]
[1759848130016,0.00244858,4617.2,4617.1,1.1756]
[1759848131728,0.00244858,4617.2,4617.1,6.1756]
[1759848132018,3.2078,4618.5,4617.6,1.1756]
[1759848132226,0.97338,4619.4,4617.5,0.4604]
[1759848132227,0.22,4619.3,4618.1,1.1756]
[1759848132415,0.38949,4617.7,4617.5,0.6804]
[1759848132724,0.38949,4617.7,4617.6,1.1756]
[1759848132921,3.59926381,4617.7,4617.6,1.17714725]
[1759848133120,3.59926381,4617.7,4617.6,0.00154725]
[1759848133431,8.93186381,4617.7,4617.6,0.00154725]
[1759848133623,3.20977381,4617.7,4617.0,0.4604]
[1759848133827,0.39146381,4617.7,4617.6,1.1756]
[1759848134221,0.00197381,4617.7,4617.6,1.1756]
[1759848134726,0.00197381,4617.7,4617.6,1.17757023]
[1759848135026,0.00197381,4617.7,4616.5,1.636]
[1759848135027,0.97378,4617.5,4616.5,1.636]
[1759848135328,3.2078,4617.2,4616.6,1.1756]
[1759848135622,0.38953,4617.3,4617.1,1.1756]
[1759848135929,0.38954,4617.2,4617.1,1.17783076]
[1759848136127,0.00197381,4617.7,4617.1,1.17783076]
[1759848136326,0.72213,4617.3,4617.1,0.00223076]
[1759848136524,0.38953,4617.3,4617.2,1.1756]
[1759848137327,0.38951,4617.5,4617.1,0.00223076]
[1759848137526,0.39146381,4617.7,4617.5,0.4604]
[1759848137716,0.00197381,4617.7,4617.6,1.1756]
[1759848138827,0.00197381,4617.7,4617.6,6.1756]
[1759848139125,3.5972,4618.8,4618.6,1.1756]
[1759848139330,3.2078,4618.8,4618.5,0.4604]
[1759848139857,3.2078,4619.4,4619.1,1.1756]
[1759848140034,0.38937,4619.2,4619.1,1.1756]
[1759848141118,3.2105844,4619.4,4619.0,0.4604]
[1759848141329,0.0027844,4619.4,4619.1,4.3834]
[1759848141525,0.0027844,4619.4,4619.2,1.56496]
[1759848141831,3.2078,4619.9,4619.8,1.1756]
[1759848142023,3.2078,4619.9,4619.8,1.3956]
[1759848142220,3.2078,4620.4,4620.2,1.1756]
[1759848142423,3.2078,4620.4,4620.3,1.3956]
[1759848142623,3.2078,4621.0,4620.6,1.1756]
[1759848142821,0.38923,4620.9,4620.7,1.1756]
[1759848143022,0.38923,4620.9,4620.8,1.3956]
[1759848143230,0.0016609,4621.0,4620.9,1.1756]
[1759848143736,0.0016609,4621.0,4620.9,4.99262]
[1759848144129,3.2078,4622.2,4621.6,1.1756]
[1759848144332,3.2078,4622.2,4622.0,0.4604]
[1759848144532,3.2298,4622.9,4622.1,1.3956]
[1759848144729,0.43997359,4622.8,4622.1,1.3956]
[1759848145035,0.43997359,4622.8,4622.6,1.1756]
[1759848145036,0.82904359,4622.7,4622.6,1.1756]
[1759848145233,0.00276292,4622.8,4622.6,0.22]
[1759848145531,0.00276292,4622.8,4622.7,1.1756]
[1759848145925,0.00276292,4622.8,4622.7,1.3956]
[1759848146134,0.39182292,4622.8,4622.7,1.3956]
[1759848146329,0.00276292,4622.8,4622.7,1.3956]
[1759848147329,0.00276292,4622.8,4622.7,1.1756]
[1759848147532,0.00276292,4622.8,4622.7,6.3956]
[1759848147829,3.2078,4623.9,4623.6,1.1756]
[1759848148032,0.43923464,4623.8,4623.7,1.3956]
[1759848148732,1.49442953,4625.5,4624.0,0.4604]
[1759848148935,3.2078,4625.2,4624.2,1.1756]
[1759848149163,0.97221,4625.0,4624.2,1.1756]
[1759848149324,0.43902488,4624.9,4624.2,1.1756]
[1759848149527,0.43902488,4624.8,4624.2,1.1756]
[1759848149725,3.2078,4624.5,4624.2,0.22194517]
[1759848149935,0.82795488,4624.4,4624.3,1.1756]
[1759848151538,0.3621,4624.3,4624.2,0.00194517]
[1759848151727,5.80112488,4624.3,4624.2,0.00194517]
[1759848152033,5.80112488,4624.3,4622.4,74.562]
[1759848152034,0.97258,4623.2,4621.9,3.2078]
[1759848152229,1.1383,4622.0,4621.9,3.2078]
[1759848153132,1.1383,4622.0,4621.0,3.2078]
[1759848153133,0.38918,4621.4,4621.0,3.2078]
[1759848153335,1.54645,4621.8,4621.0,3.2078]
[1759848153534,3.2078,4622.2,4620.5,3.6682]
[1759848153836,0.38929,4620.6,4620.3,0.22]
[1759848154029,0.38929,4620.6,4619.0,34.57842]
[1759848154030,0.38934,4620.0,4619.8,3.2078]
[1759848154234,0.38934,4620.0,4619.8,0.00277048]
[1759848154437,1.1573,4619.9,4619.8,0.00277048]
[1759848154731,0.00167253,4620.6,4619.9,1.0991]
[1759848154946,0.00167253,4620.6,4620.3,1.0991]
[1759848155129,0.3893,4620.4,4620.2,3.2078]
[1759848155331,0.38933,4620.0,4619.8,0.00277048]
[1759848155537,4.3651,4620.3,4619.9,0.22]
[1759848155738,4.3651,4620.3,4620.0,1.0991]
[1759848156233,4.3651,4620.3,4619.8,0.00277048]
[1759848156234,3.2078,4620.3,4619.8,0.00277048]
[1759848156438,0.38934,4620.0,4619.9,0.22]
[1759848156636,3.2078,4620.3,4619.9,0.22]
[1759848156936,0.38933,4620.0,4619.9,0.22]
[1759848157127,4.3651,4620.3,4619.9,0.22]
[1759848157128,0.38933,4620.1,4619.9,0.22]
[1759848157332,1.1573,4620.2,4620.0,1.0991]
[1759848157333,0.38932,4620.2,4620.0,1.0991]
[1759848157536,3.2078,4620.3,4620.0,1.0991]
[1759848157735,3.2078,4620.3,4619.9,0.22]
[1759848157930,0.00167253,4620.6,4620.0,1.0991]
[1759848158127,0.00167253,4620.6,4620.2,0.38931]
[1759848158334,0.00167253,4620.6,4620.2,0.00156311]
[1759848158545,0.00167253,4620.6,4620.3,1.48771]
[1759848158836,0.00167253,4620.6,4620.5,1.0984]
[1759848159139,0.00167253,4620.6,4620.5,1.5454]
[1759848159436,0.00167253,4620.6,4620.5,6.5454]
[1759848160139,0.38922,4621.4,4620.9,0.38925]
[1759848160337,0.38922,4621.4,4621.1,1.0984]
[1759848160543,3.2078,4622.1,4621.3,1.0984]
[1759848160740,0.3892,4621.7,4621.5,1.5454]
[1759848160942,0.38918,4621.9,4621.5,0.8362]
[1759848161138,0.00261985,4621.9,4621.5,0.447]
[1759848161441,0.00261985,4621.9,4621.8,1.0984]
[1759848161741,0.00261985,4621.9,4621.8,1.3184]
[1759848162938,0.39178985,4621.9,4621.8,1.0984]
[1759848163132,0.39178985,4621.9,4621.5,3.2078]
[1759848163133,0.3892,4621.6,4621.5,3.2078]
[1759848163337,0.3892,4621.6,4621.5,3.4278]
[1759848163538,0.00261985,4621.9,4621.5,4.5262]
[1759848163738,0.39179985,4621.9,4621.6,1.0984]
[1759848163939,0.39179985,4621.9,4621.6,0.38919]
[1759848164142,0.38918,4621.8,4621.7,1.0984]
[1759848164341,0.38918,4621.8,4621.7,41.8984]
[1759848164741,0.38918,4621.8,4621.7,1.0984]
[1759848165046,0.3892,4621.6,4621.5,3.2078]
[1759848165348,0.38923,4621.2,4621.1,1.0984]
[1759848165649,0.39178985,4621.9,4621.1,1.3184]
[1759848165846,0.00261985,4621.9,4621.8,1.0984]
[1759848166148,0.00261985,4621.9,4621.8,4.5262]
[1759848166449,3.2078,4622.7,4622.0,0.447]
[1759848166643,0.38911,4622.7,4622.1,1.3184]
[1759848166944,0.38908,4623.0,4622.8,0.38909]
[1759848167144,0.38908,4623.0,4622.9,1.3184]
[1759848167344,0.97259,4623.6,4622.6,1.0984]
[1759848167643,0.38907,4623.2,4623.1,1.0984]
[1759848168041,0.38905,4623.5,4623.4,1.48744]
[1759848168250,0.44468045,4623.6,4623.4,1.70744]
[1759848168544,0.00249556,4623.6,4623.5,1.0984]
[1759848168745,0.44457376,4623.6,4623.5,1.10027492]
[1759848169044,0.00249556,4623.6,4623.5,1.76727492]
[1759848169940,1.0861,4625.8,4623.8,1.0984]
[1759848170143,1.0861,4625.8,4623.5,5.83235786]
[1759848170144,1.0861,4625.8,4624.6,1.48734]
[1759848170435,1.0861,4625.8,4624.5,3.6548]
[1759848170436,0.22,4626.1,4624.7,40.8]
[1759848170635,0.38896,4624.4,4624.0,4.04379]
[1759848170840,0.38896,4624.4,4624.2,1.0984]
[1759848170841,0.39067877,4624.4,4624.2,1.0984]
[1759848171041,1.08780877,4624.4,4624.0,3.2078]
[1759848171243,1.08780877,4624.4,4623.6,1.0984]
[1759848171244,0.389,4624.0,4623.6,1.0984]
[1759848171444,1.0861,4624.3,4623.5,0.00187492]
[1759848171649,1.47513,4623.6,4623.5,0.00187492]
[1759848171852,1.47513,4623.6,4623.5,0.22187492]
[1759848172541,3.2078,4624.1,4623.5,1.10027492]
[1759848172736,1.0861,4623.6,4623.5,0.00187492]
[1759848173139,6.0861,4623.6,4623.5,0.00187492]
[1759848173337,1.0861,4623.6,4623.5,0.00187492]
[1759848173842,1.0861,4623.9,4623.5,0.00187492]
[1759848174044,0.4258,4624.5,4623.5,0.00187492]
[1759848174045,1.5119,4624.5,4623.6,1.0984]
[1759848174242,1.5119,4624.5,4623.7,0.22]
[1759848174445,1.0861,4624.5,4623.7,0.22]
[1759848174744,3.2078,4624.9,4623.9,1.0984]
[1759848174948,3.2078,4624.9,4624.0,0.447]
[1759848175245,3.2078,4624.9,4624.2,1.0984]
[1759848175443,1.47504,4624.7,4624.3,0.22]
[1759848175643,3.2078,4624.9,4624.3,1.3184]
[1759848176341,1.0861,4625.1,4624.3,1.3184]
[1759848176542,0.38892,4625.0,4624.3,1.3184]
[1759848176745,0.3889,4625.1,4624.3,4.5262]
[1759848177043,1.0861,4625.7,4624.3,4.5262]
[1759848177249,0.38889,4625.3,4624.3,9.5262]
[1759848177544,0.3889,4625.2,4624.3,9.5262]
[1759848178150,1.0861,4625.7,4624.3,9.5262]
[1759848178348,1.0861,4625.2,4624.3,41.8984]
[1759848178545,0.38896,4624.5,4624.3,42.1184]
[1759848178743,0.38896,4624.5,4624.3,1.0984]
[1759848178944,0.38895,4624.6,4624.3,1.0984]
[1759848179247,0.38896,4624.5,4624.3,1.0984]
[1759848179447,3.2078,4625.3,4624.3,1.3184]
[1759848179647,3.2078,4625.3,4624.3,9.5262]
[1759848179952,3.2078,4625.3,4625.2,1.0984]
[1759848180150,3.2078,4625.3,4625.2,1.3184]
[1759848180353,0.38884,4625.9,4625.2,1.3184]
[1759848180644,3.2078,4626.7,4625.7,1.0984]
[1759848180841,3.21029618,4626.7,4626.2,0.3888]
[1759848181042,3.21029618,4626.7,4626.3,0.22]
[1759848181246,0.38879,4626.5,4626.3,0.22]
[1759848181448,0.38879,4626.5,4626.4,1.0984]
[1759848181852,0.38879,4626.5,4626.4,1.3184]
[1759848182046,0.38878,4626.6,4626.5,1.0984]
[1759848182255,0.38878,4626.6,4626.0,0.447]
[1759848182256,0.38885,4625.8,4625.5,0.447]
[1759848182448,0.97199,4626.4,4625.6,1.3184]
[1759848182754,0.38885,4625.8,4625.7,41.8621]
[1759848183054,0.38885,4625.8,4625.7,42.0821]
[1759848183247,0.38885,4625.8,4625.7,40.8]
[1759848183448,0.38885,4625.8,4625.7,42.0821]
[1759848183643,0.38883,4626.0,4625.8,1.0621]
[1759848183954,0.38883,4626.0,4625.7,0.60885]
[1759848184155,0.38881,4626.3,4625.9,0.38884]
[1759848184450,0.00249618,4626.7,4626.2,1.0621]
[1759848184653,0.00249618,4626.7,4626.3,0.22]
[1759848184654,1.45019,4626.4,4626.3,0.22]
[1759848184854,0.38884,4625.8,4625.7,1.0621]
[1759848185242,0.38884,4625.8,4625.7,1.2821]
[1759848185449,3.2078,4626.6,4625.7,1.67095]
[1759848185646,0.38882,4626.1,4625.8,1.0621]
[1759848185847,0.38886,4625.7,4625.6,1.0621]
[1759848186050,0.38883,4626.0,4625.6,1.2821]
[1759848186254,0.38882,4626.1,4625.7,0.38885]
[1759848186558,0.00249618,4626.7,4625.8,0.22]
[1759848186856,0.00249618,4626.7,4625.6,40.8]
[1759848186857,0.38885,4625.7,4625.6,40.8]
[1759848187053,1.0614,4625.6,4625.0,1.0621]
[1759848187272,1.4503,4625.2,4625.0,1.0621]
[1759848187454,0.3889,4625.2,4625.1,1.0621]
[1759848187659,0.3889,4625.2,4625.1,1.2821]
[1759848187862,0.3889,4625.2,4625.1,1.0621]
[1759848188058,1.45031,4625.0,4624.9,3.2078]
[1759848188263,0.38897,4624.4,4624.2,4.2699]
[1759848188560,1.0614,4624.2,4624.1,0.15890608]
[1759848188754,0.38902,4623.8,4623.6,4.2699]
[1759848188956,0.38902,4623.8,4623.5,0.00187492]
[1759848188957,0.38903,4623.6,4623.5,0.00187492]
[1759848189156,0.38903,4623.6,4623.5,1.06397492]
[1759848189560,0.38902,4623.7,4623.5,0.00187492]
[1759848189857,0.38902,4623.7,4623.6,1.0621]
[1759848190061,1.0614,4623.6,4623.5,0.00187492]
[1759848190258,1.0614,4623.6,4623.5,0.22187492]
[1759848190460,1.0614,4623.6,4623.5,0.00187492]
[1759848190964,6.0614,4623.6,4623.5,0.00187492]
[1759848192363,6.0614,4623.6,4621.9,0.22]
[1759848192364,0.38917,4622.0,4621.9,0.22]
[1759848192554,0.38915,4622.2,4621.9,0.22]
[1759848192754,4.2692,4622.5,4621.5,3.6668]
[1759848192952,0.38919,4621.7,4621.5,3.2078]
[1759848193157,0.3892,4621.6,4621.5,3.21037447]
[1759848193364,1.4506,4621.6,4621.5,3.21037447]
[1759848193560,0.0022847,4621.7,4621.6,1.0621]
[1759848194262,0.0022847,4621.7,4621.6,1.2821]
[1759848194458,0.0022847,4621.7,4621.6,1.6713]
[1759848194661,0.0022847,4621.7,4621.6,1.2821]
[1759848194858,0.0022847,4621.7,4621.6,1.0621]
[1759848195359,0.0022847,4621.7,4621.6,1.2821]
[1759848196058,0.0022847,4621.7,4621.6,1.0621]
[1759848196261,0.3892,4621.6,4621.5,3.21037447]
[1759848196462,0.3892,4621.6,4621.5,3.43037447]
[1759848196659,0.3892,4621.6,4621.5,4.49247447]
[1759848196864,0.3892,4621.6,4621.5,3.21037447]
[1759848197071,1.4506,4621.6,4621.5,0.00257447]
[1759848197570,1.4506,4621.6,4621.5,1.06467447]
[1759848197571,0.3892,4621.6,4621.5,1.06467447]
[1759848197959,0.0022847,4621.7,4621.6,1.0621]
[1759848198164,0.0022847,4621.7,4621.6,1.6713]
[1759848199373,0.0022847,4621.7,4621.5,0.00257447]
[1759848199374,1.4506,4621.6,4621.5,0.00257447]
[1759848200771,6.4506,4621.6,4621.5,0.00257447]
[1759848200971,0.3893,4620.4,4620.2,3.2078]
[1759848201265,1.1105,4620.2,4619.9,1.1366]
[1759848201475,1.1105,4620.2,4620.0,0.22]
[1759848201667,1.1105,4620.8,4619.9,1.52594]
[1759848201867,3.2078,4620.9,4620.0,0.22]
[1759848202074,0.38932,4620.2,4620.0,1.3566]
[1759848202274,1.49982,4620.2,4620.0,1.3566]
[1759848202469,1.49982,4620.2,4620.0,1.1366]
[1759848202670,1.49982,4620.2,4620.1,0.22]
[1759848202975,0.38932,4620.2,4620.1,0.22]
[1759848203472,1.49983,4620.0,4619.9,0.00217001]
[1759848203671,1.95923,4620.0,4619.9,0.00217001]